Workbook

Sheet بدء
B1: حول هذا القالب
B2: استخدم هذا القالب لإنشاء "ميزانية تسويق القنوات".
B3: أدخل "المبيعات المتوقعة" لكل شهر والتفاصيل الأخرى في الجداول.
B4: يتم حساب الإجماليات تلقائياً وتحديث خطوط المؤشرات.
B5: ملاحظة:
B6: تم توفير إرشادات إضافية في العمود A في ورقة العمل "ميزانية قنوات التسويق". تم إخفاء هذا النص عن قصد. لإزالة النص، حدد العمود A، ثم حدد "حذف". لإظهار النص، حدد العمود A، ثم قم بتغيير لون الخط.
B7: لمعرفة المزيد حول الجداول، اضغط على SHIFT ثم F10 داخل جدول، وحدد خيار "جدول"، ثم حدد "النص البديل".

Sheet ميزانية تسويق القنوات
A1: قم بإنشاء "ميزانية تسويق القنوات" في ورقة العمل هذه. يوجد عنوان ورقة العمل هذه في الخلية الموجودة على اليسار. وتوجد إرشادات مفيدة في الخلايا الموجودة في هذا العمود. السهم لأسفل لبدء الاستخدام. يوجد عنوان ورقة العمل هذه في الخلية الموجودة على اليسار. | B1: ميزانية تسويق القنوات
A2: يوجد السعر وتسميات الأشهر في هذا الصف، من الخلايا C2 مروراً إلى O2 وإجمالي التسمية في الخلية Q2. | C2: السعر | D2: الشهر 1 | E2: الشهر 2 | F2: الشهر 3 | G2: الشهر 4 | H2: الشهر 5 | I2: الشهر 6 | J2: الشهر 7 | K2: الشهر 8 | L2: الشهر 9 | M2: الشهر 10 | N2: الشهر 11 | O2: الشهر 12 | Q2: الإجمالي
A3: توجد تسمية "إجمالي المبيعات المتوقعة" في الخلية الموجودة على اليسار. أدخل "المبيعات المتوقع" لكل شهر في الخلايا من D3 إلى O3. يتم حساب الإجمالي تلقائياً في الخلية Q3. | B3: إجمالي المبيعات المتوقعة ر.س. (000) | D3: 750 | E3: 200 | F3: 500 | G3: 1,500 | H3: 1,200 | I3: 1,500 | J3: 1,500 | K3: 1,800 | L3: 2,000 | M3: 2,000 | N3: 2,000 | O3: 2,000 | Q3: =SUM(D3:O3) -> 16,950
A4: أدخل التفاصيل في جدول العاملين بدءاً من الخلية الموجودة على اليسار. يتم حساب إجمالي تكلفة الموظفين تلقائياً لكل شهر في نهاية هذا الجدول والإجمالي التكلفة السنوية في الخلية Q9. يتم تحديث خط المؤشر في الخلية S9. توجد الإرشادات التالية في الخلية A10. | B4: عناصر الموظفين | C4: السعر | D4: الشهر 1 | E4: الشهر 2 | F4: الشهر 3 | G4: الشهر 4 | H4: الشهر 5 | I4: الشهر 6 | J4: الشهر 7 | K4: الشهر 8 | L4: الشهر 9 | M4: الشهر 10 | N4: الشهر 11 | O4: الشهر 12
B5: الموظفون (النسبة المئوية من إجمالي المبيعات) | D5: =D11+D33+D41+D48 -> 110% | E5: 110% | F5: 110% | G5: 110% | H5: 110% | I5: 110% | J5: 110% | K5: 110% | L5: 85% | M5: 85% | N5: 85% | O5: 85%
B6: الموارد البشرية - عدد الموظفين | C6: 5 | D6: =+$C$6 -> 5 | E6: 5 | F6: 5 | G6: 5 | H6: 5 | I6: 5 | J6: 5 | K6: 5 | L6: 5 | M6: 5 | N6: 5 | O6: 5
B7: الموارد البشرية - التكلفة | D7: =$C$6*D6 -> 25.00 | E7: 25.00 | F7: 25.00 | G7: 25.00 | H7: 25.00 | I7: 25.00 | J7: 25.00 | K7: 25.00 | L7: 25.00 | M7: 25.00 | N7: 25.00 | O7: 25.00 | Q7: =SUM('ميزانية تسويق القنوات'!$D7:$O7) -> 300.00
B8: العمولة | C8: 0.10% | D8: =D3*$C$8 -> 0.75 | E8: 0.20 | F8: 0.50 | G8: 1.50 | H8: 1.20 | I8: 1.50 | J8: 1.50 | K8: 1.80 | L8: 2.00 | M8: 2.00 | N8: 2.00 | O8: 2.00 | Q8: =SUM('ميزانية تسويق القنوات'!$D8:$O8) -> 16.95
B9: إجمالي تكلفة الموظفين ر.س. (000) | D9: =SUM(D7:D8) -> 25.75 | E9: =SUM(E7:E8) -> 25.20 | F9: 25.50 | G9: 26.50 | H9: 26.20 | I9: 26.50 | J9: 26.50 | K9: 26.80 | L9: 27.00 | M9: 27.00 | N9: 27.00 | O9: 27.00 | Q9: =SUM(Q7:Q8) -> 316.95
A10: أدخل التفاصيل في جدول "التسويق المباشر" بدءاً من الخلية الموجودة على اليسار. يتم حساب "إجمالي تكلفة التسويق الهاتفي" تلقائياً لكل شهر في نهاية هذا الجدول والإجمالي التكلفة السنوية في الخلية Q17. يتم تحديث خط المؤشر في الخلية S17. توجد الإرشادات التالية في الخلية A18. | B10: عناصر التسويق المباشر | C10: السعر | D10: الشهر 1 | E10: الشهر 2 | F10: الشهر 3 | G10: الشهر 4 | H10: الشهر 5 | I10: الشهر 6 | J10: الشهر 7 | K10: الشهر 8 | L10: الشهر 9 | M10: الشهر 10 | N10: الشهر 11 | O10: الشهر 12
B11: التسويق المباشر (النسبة المئوية من إجمالي المبيعات) | D11: 100% | E11: 100% | F11: 75% | G11: 40% | H11: 33% | I11: 25% | J11: 20% | K11: 10% | L11: 5% | M11: 5% | N11: 5% | O11: 5%
B12: التسويق عبر الهاتف (النسبة المئوية من المبيعات المباشرة) | D12: 100% | E12: 50% | F12: 50% | G12: 50% | H12: 50% | I12: 50% | J12: 50% | K12: 50% | L12: 50% | M12: 50% | N12: 50% | O12: 50%
B13: الموارد البشرية - عدد الموظفين | C13: 3 | D13: =$C$13*D12 -> 3 | E13: 1.5 | F13: 1.5 | G13: 1.5 | H13: 1.5 | I13: 1.5 | J13: 1.5 | K13: 1.5 | L13: 1.5 | M13: 1.5 | N13: 1.5 | O13: 1.5 | Q13: =SUM('ميزانية تسويق القنوات'!$D13:$O13) -> 19.50
B14: دعم البنية التحتية | D14: 25 | E14: 10 | F14: 25 | G14: 10 | H14: 25 | I14: 10 | J14: 25 | K14: 10 | L14: 25 | M14: 10 | N14: 25 | O14: 10 | Q14: =SUM('ميزانية تسويق القنوات'!$D14:$O14) -> 210.00
B15: العمولة | C15: 0.10% | D15: =$C$15*D3*D11*D12 -> 0.75 | E15: 0.10 | F15: 0.19 | G15: 0.30 | H15: 0.20 | I15: 0.19 | J15: 0.15 | K15: 0.09 | L15: 0.05 | M15: 0.05 | N15: 0.05 | O15: 0.05 | Q15: =SUM('ميزانية تسويق القنوات'!$D15:$O15) -> 2.16
B16: التدريب | D16: 25 | E16: 10 | F16: 25 | G16: 10 | H16: 25 | I16: 10 | J16: 25 | K16: 10 | L16: 25 | M16: 10 | N16: 25 | O16: 10 | Q16: =SUM('ميزانية تسويق القنوات'!$D16:$O16) -> 210.00
B17: إجمالي تكلفة التسويق الهاتفي ر.س. (000) | D17: =SUM(D13:D16) -> 53.75 | E17: =SUM(E13:E16) -> 21.60 | F17: =SUM(F13:F16) -> 51.69 | G17: 21.80 | H17: 51.70 | I17: 21.69 | J17: 51.65 | K17: 21.59 | L17: 51.55 | M17: 21.55 | N17: 51.55 | O17: 21.55 | Q17: =SUM(Q13:Q16) -> 441.66
A18: أدخل التفاصيل في جدول "التسويق عبر الإنترنت" بدءاً من الخلية الموجودة على اليسار. يتم حساب "إجمالي تكلفة التسويق عبر الإنترنت" تلقائياً لكل شهر في نهاية هذا الجدول والإجمالي التكلفة السنوية في الخلية Q24. يتم تحديث خط المؤشر في الخلية S24. توجد الإرشادات التالية في الخلية A25. | B18: عناصر التسويق عبر الإنترنت | C18: السعر | D18: الشهر 1 | E18: الشهر 2 | F18: الشهر 3 | G18: الشهر 4 | H18: الشهر 5 | I18: الشهر 6 | J18: الشهر 7 | K18: الشهر 8 | L18: الشهر 9 | M18: الشهر 10 | N18: الشهر 11 | O18: الشهر 12
B19: التسويق عبر الإنترنت (النسبة المئوية من المبيعات المباشرة) | D19: 25% | E19: 25% | F19: 25% | G19: 25% | H19: 25% | I19: 25% | J19: 25% | K19: 25% | L19: 25% | M19: 25% | N19: 25% | O19: 25%
B20: الموارد البشرية - عدد الموظفين | C20: 1 | D20: =$C$20*D19 -> 0.25 | E20: 0.25 | F20: 0.25 | G20: 0.25 | H20: 0.25 | I20: 0.25 | J20: 0.25 | K20: 0.25 | L20: 0.25 | M20: 0.25 | N20: 0.25 | O20: 0.25 | Q20: =SUM('ميزانية تسويق القنوات'!$D20:$O20) -> 3.00
B21: تطوير موقع ويب (تكلفة لمرة واحدة) | D21: 500 | Q21: =SUM('ميزانية تسويق القنوات'!$D21:$O21) -> 500.00
B22: الاستضافة | D22: 10 | E22: 10 | F22: 10 | G22: 10 | H22: 10 | I22: 10 | J22: 10 | K22: 10 | L22: 10 | M22: 10 | N22: 10 | O22: 10 | Q22: =SUM('ميزانية تسويق القنوات'!$D22:$O22) -> 120.00
B23: الدعم والصيانة | D23: 25 | N23: 25 | Q23: =SUM('ميزانية تسويق القنوات'!$D23:$O23) -> 50.00
B24: إجمالي تكلفة التسويق عبر الإنترنت ر.س. (000) | D24: =SUM(D20:D23) -> 535.25 | E24: =SUM(E20:E23) -> 10.25 | F24: 10.25 | G24: 10.25 | H24: 10.25 | I24: 10.25 | J24: 10.25 | K24: 10.25 | L24: 10.25 | M24: 10.25 | N24: 35.25 | O24: 10.25 | Q24: =SUM(Q20:Q23) -> 673.00
A25: أدخل تفاصيل في جدول "البريد المباشر" بدءاً من الخلية الموجودة على اليسار. يتم حساب "إجمالي تكلفة البريد المباشر" تلقائياً لكل شهر في نهاية هذا الجدول والإجمالي التكلفة السنوية في الخلية Q30. توجد الإرشادات التالية في الخلية A31. | B25: عناصر البريد المباشر | C25: السعر | D25: الشهر 1 | E25: الشهر 2 | F25: الشهر 3 | G25: الشهر 4 | H25: الشهر 5 | I25: الشهر 6 | J25: الشهر 7 | K25: الشهر 8 | L25: الشهر 9 | M25: الشهر 10 | N25: الشهر 11 | O25: الشهر 12
B26: البريد المباشر (النسبة المئوية من المبيعات المباشرة)
B27: الموارد البشرية - التكلفة | Q27: =SUM('ميزانية تسويق القنوات'!$D27:$O27) -> 0.00
B28: المواد | D28: 1000 | E28: 1000 | F28: 1000 | G28: 1000 | H28: 1000 | I28: 1000 | J28: 1000 | K28: 1000 | L28: 1000 | M28: 1000 | N28: 1000 | O28: 1000 | Q28: =SUM('ميزانية تسويق القنوات'!$D28:$O28) -> 12,000.00
B29: رسوم الإرسال بالبريد | D29: 250 | E29: 250 | F29: 250 | G29: 250 | H29: 250 | I29: 250 | J29: 250 | K29: 250 | L29: 250 | M29: 250 | N29: 250 | O29: 250 | Q29: =SUM('ميزانية تسويق القنوات'!$D29:$O29) -> 3,000.00
B30: إجمالي تكلفة البريد المباشر ر.س. (000) | D30: =SUM(D27:D29) -> 1,250.00 | E30: =SUM(E27:E29) -> 1,250.00 | F30: 1,250.00 | G30: 1,250.00 | H30: 1,250.00 | I30: 1,250.00 | J30: 1,250.00 | K30: 1,250.00 | L30: 1,250.00 | M30: 1,250.00 | N30: 1,250.00 | O30: 1,250.00 | Q30: =SUM(Q27:Q29) -> 15,000.00
A31: يتم حساب "إجمالي تكلفة التسويق المباشر" في هذا الصف، من الخلايا D31 إلى O31، والإجمالي التكلفة السنوية في الخلية Q31. يتم تحديث خط المؤشر في الخلية S31. | B31: إجمالي تكلفة التسويق المباشر ر.س. (000) | D31: =SUM(البريد_المباشر[[#Totals],[الشهر 1]],التسويق_الإلكتروني[[#Totals],[الشهر 1]],التسويق_المباشر[[#Totals],[الشهر 1]]) -> 1,839.00 | E31: =SUM(البريد_المباشر[[#Totals],[الشهر 2]],التسويق_الإلكتروني[[#Totals],[الشهر 2]],التسويق_المباشر[[#Totals],[الشهر 2]]) -> 1,281.85 | F31: =SUM(البريد_المباشر[[#Totals],[الشهر 3]],التسويق_الإلكتروني[[#Totals],[الشهر 3]],التسويق_المباشر[[#Totals],[الشهر 3]]) -> 1,311.94 | G31: =SUM(البريد_المباشر[[#Totals],[الشهر 4]],التسويق_الإلكتروني[[#Totals],[الشهر 4]],التسويق_المباشر[[#Totals],[الشهر 4]]) -> 1,282.05 | H31: =SUM(البريد_المباشر[[#Totals],[الشهر 5]],التسويق_الإلكتروني[[#Totals],[الشهر 5]],التسويق_المباشر[[#Totals],[الشهر 5]]) -> 1,311.95 | I31: =SUM(البريد_المباشر[[#Totals],[الشهر 6]],التسويق_الإلكتروني[[#Totals],[الشهر 6]],التسويق_المباشر[[#Totals],[الشهر 6]]) -> 1,281.94 | J31: =SUM(البريد_المباشر[[#Totals],[الشهر 7]],التسويق_الإلكتروني[[#Totals],[الشهر 7]],التسويق_المباشر[[#Totals],[الشهر 7]]) -> 1,311.90 | K31: =SUM(البريد_المباشر[[#Totals],[الشهر 8]],التسويق_الإلكتروني[[#Totals],[الشهر 8]],التسويق_المباشر[[#Totals],[الشهر 8]]) -> 1,281.84 | L31: =SUM(البريد_المباشر[[#Totals],[الشهر 9]],التسويق_الإلكتروني[[#Totals],[الشهر 9]],التسويق_المباشر[[#Totals],[الشهر 9]]) -> 1,311.80 | M31: =SUM(البريد_المباشر[[#Totals],[الشهر 10]],التسويق_الإلكتروني[[#Totals],[الشهر 10]],التسويق_المباشر[[#Totals],[الشهر 10]]) -> 1,281.80 | N31: =SUM(البريد_المباشر[[#Totals],[الشهر 11]],التسويق_الإلكتروني[[#Totals],[الشهر 11]],التسويق_المباشر[[#Totals],[الشهر 11]]) -> 1,336.80 | O31: =SUM(البريد_المباشر[[#Totals],[الشهر 12]],التسويق_الإلكتروني[[#Totals],[الشهر 12]],التسويق_المباشر[[#Totals],[الشهر 12]]) -> 1,281.80 | Q31: =SUM(Q30,Q24,Q17,Q9) -> 16,431.61
A32: أدخل التفاصيل في جدول "الوكيل والسمسار" بدءاً من الخلية الموجودة على اليسار. يتم حساب "إجمالي تكلفة الوكيل والوسيط" تلقائياً لكل شهر في نهاية هذا الجدول والإجمالي التكلفة السنوية في الخلية Q39. يتم تحديث خط المؤشر في الخلية S39. توجد الإرشادات التالية في الخلية A40. | B32: عناصر الوكيل/الوسيط | C32: السعر | D32: الشهر 1 | E32: الشهر 2 | F32: الشهر 3 | G32: الشهر 4 | H32: الشهر 5 | I32: الشهر 6 | J32: الشهر 7 | K32: الشهر 8 | L32: الشهر 9 | M32: الشهر 10 | N32: الشهر 11 | O32: الشهر 12
B33: الوكيل/السمسار (النسبة المئوية من إجمالي المبيعات) | D33: 10% | E33: 10% | F33: 10% | G33: 10% | H33: 10% | I33: 10% | J33: 10% | K33: 10% | L33: 10% | M33: 10% | N33: 10% | O33: 10%
B34: الاتصالات | D34: 50 | E34: 50 | F34: 50 | G34: 50 | H34: 50 | I34: 50 | J34: 50 | K34: 50 | L34: 50 | M34: 50 | N34: 50 | O34: 50 | Q34: =SUM('ميزانية تسويق القنوات'!$D34:$O34) -> 600.00
B35: التدريب | D35: 250.00 | E35: 250.00 | F35: 250.00 | G35: 250.00 | H35: 250.00 | I35: 250.00 | J35: 250.00 | K35: 250.00 | L35: 250.00 | M35: 250.00 | N35: 250.00 | O35: 250.00 | Q35: =SUM('ميزانية تسويق القنوات'!$D35:$O35) -> 3,000.00
B36: العروض الترويجية | D36: 600.00 | E36: 600.00 | F36: 600.00 | G36: 600.00 | H36: 600.00 | I36: 600.00 | J36: 600.00 | K36: 600.00 | L36: 600.00 | M36: 600.00 | N36: 600.00 | O36: 600.00 | Q36: =SUM('ميزانية تسويق القنوات'!$D36:$O36) -> 7,200.00
B37: الخصومات | C37: 10.00% | D37: =D3*D33*$C$37 -> 7.50 | E37: 2.00 | F37: 5.00 | G37: 15.00 | H37: 12.00 | I37: 15.00 | J37: 15.00 | K37: 18.00 | L37: 20.00 | M37: 20.00 | N37: 20.00 | O37: 20.00 | Q37: =SUM('ميزانية تسويق القنوات'!$D37:$O37) -> 169.50
B38: العمولة (النسبة المئوية من مبيعات الوكيل) | C38: 10.00% | D38: =D3*D33*$C$38 -> 7.50 | E38: 2.00 | F38: 5.00 | G38: 15.00 | H38: 12.00 | I38: 15.00 | J38: 15.00 | K38: 18.00 | L38: 20.00 | M38: 20.00 | N38: 20.00 | O38: 20.00 | Q38: =SUM('ميزانية تسويق القنوات'!$D38:$O38) -> 169.50
B39: إجمالي تكلفة الوكيل/الوسيط ر.س. (000) | D39: =SUM(D34:D38) -> 915.00 | E39: 904.00 | F39: 910.00 | G39: 930.00 | H39: 924.00 | I39: 930.00 | J39: 930.00 | K39: 936.00 | L39: 940.00 | M39: 940.00 | N39: 940.00 | O39: 940.00 | Q39: =SUM(Q34:Q38) -> 11,139.00
A40: أدخل التفاصيل في جدول "الموزعين" بدءاً من الخلية الموجودة على اليسار. يتم حساب "إجمالي تكلفة الموزع" تلقائياً لكل شهر في نهاية هذا الجدول والإجمالي التكلفة السنوية في الخلية Q46. يتم تحديث خط المؤشر في الخلية S46. توجد الإرشادات التالية في الخلية A47. | B40: عناصر الموزع | C40: السعر | D40: الشهر 1 | E40: الشهر 2 | F40: الشهر 3 | G40: الشهر 4 | H40: الشهر 5 | I40: الشهر 6 | J40: الشهر 7 | K40: الشهر 8 | L40: الشهر 9 | M40: الشهر 10 | N40: الشهر 11 | O40: الشهر 12
B41: الموزعون (النسبة المئوية من إجمالي المبيعات) | D41: 0% | E41: 0% | F41: 0% | G41: 0% | H41: 0% | I41: 15% | J41: 20% | K41: 40% | L41: 40% | M41: 40% | N41: 40% | O41: 40%
B42: الاتصالات | D42: 50 | E42: 50 | F42: 50 | G42: 50 | H42: 50 | I42: 50 | J42: 50 | K42: 50 | L42: 50 | M42: 50 | N42: 50 | O42: 50 | Q42: =SUM('ميزانية تسويق القنوات'!$D42:$O42) -> 600.00
B43: التدريب | D43: 250.00 | E43: 250.00 | F43: 250.00 | G43: 250.00 | H43: 250.00 | I43: 250.00 | J43: 250.00 | K43: 250.00 | L43: 250.00 | M43: 250.00 | N43: 250.00 | O43: 250.00 | Q43: =SUM(الموزعون[[#This Row],[الشهر 1]:[الشهر 12]]) -> 3,000.00
B44: العروض الترويجية | D44: 600.00 | E44: 600.00 | F44: 600.00 | G44: 600.00 | H44: 600.00 | I44: 600.00 | J44: 600.00 | K44: 600.00 | L44: 600.00 | M44: 600.00 | N44: 600.00 | O44: 600.00 | Q44: =SUM(الموزعون[[#This Row],[الشهر 1]:[الشهر 12]]) -> 7,200.00
B45: العمولة/الخصومات (النسبة المئوية من مبيعات الموزعين) | C45: 15.00% | D45: =D3*D41*$C$45 -> 0 | E45: 0 | F45: 0 | G45: 0 | H45: 0 | I45: 33.75 | J45: 45 | K45: 108 | L45: 120 | M45: 120 | N45: 120 | O45: 120 | Q45: =SUM(الموزعون[[#This Row],[الشهر 1]:[الشهر 12]]) -> 666.75
B46: إجمالي تكلفة الموزع ر.س. (000) | D46: =SUM(D42:D45) -> 900.00 | E46: =SUM(E42:E45) -> 900.00 | F46: 900.00 | G46: 900.00 | H46: 900.00 | I46: 933.75 | J46: 945.00 | K46: 1,008.00 | L46: 1,020.00 | M46: 1,020.00 | N46: 1,020.00 | O46: 1,020.00 | Q46: =SUM(Q42:Q45) -> 11,466.75
A47: أدخل التفاصيل في جدول "بائعي التجزئة" بدءاً من الخلية الموجودة على اليسار. يتم حساب "إجمالي تكلفة بائع التجزئة" تلقائياً لكل شهر في نهاية هذا الجدول والإجمالي التكلفة السنوية في الخلية Q53. يتم تحديث خط المؤشر في الخلية S53. توجد الإرشادات التالية في الخلية A54. | B47: عناصر بائع التجزئة | C47: السعر | D47: الشهر 1 | E47: الشهر 2 | F47: الشهر 3 | G47: الشهر 4 | H47: الشهر 5 | I47: الشهر 6 | J47: الشهر 7 | K47: الشهر 8 | L47: الشهر 9 | M47: الشهر 10 | N47: الشهر 11 | O47: الشهر 12
B48: البائع بالتجزئة (النسبة المئوية من إجمالي المبيعات) | D48: 0% | E48: 0% | F48: 25% | G48: 60% | H48: 67% | I48: 60% | J48: 60% | K48: 50% | L48: 30% | M48: 30% | N48: 30% | O48: 30%
B49: الاتصالات | D49: 50 | E49: 50 | F49: 50 | G49: 50 | H49: 50 | I49: 50 | J49: 50 | K49: 50 | L49: 50 | M49: 50 | N49: 50 | O49: 50
B50: التدريب | D50: 250.00 | E50: 250.00 | F50: 250.00 | G50: 250.00 | H50: 250.00 | I50: 250.00 | J50: 250.00 | K50: 250.00 | L50: 250.00 | M50: 250.00 | N50: 250.00 | O50: 250.00 | Q50: =SUM('ميزانية تسويق القنوات'!$D49:$O49) -> 600.00
B51: العروض الترويجية | D51: 600.00 | E51: 600.00 | F51: 600.00 | G51: 600.00 | H51: 600.00 | I51: 600.00 | J51: 600.00 | K51: 600.00 | L51: 600.00 | M51: 600.00 | N51: 600.00 | O51: 600.00 | Q51: =SUM('ميزانية تسويق القنوات'!$D50:$O50) -> 3,000.00
B52: العمولة/الخصومات (النسبة المئوية من مبيعات التجزئة) | C52: 10.00% | D52: =D3*D48*$C$52 -> 0 | E52: 0 | F52: 12.5 | G52: 90 | H52: 80.4 | I52: 90 | J52: 90 | K52: 90 | L52: 60 | M52: 60 | N52: 60 | O52: 60 | Q52: =SUM('ميزانية تسويق القنوات'!$D52:$O52) -> 692.90
B53: إجمالي تكلفة بائع التجزئة ر.س. (000) | D53: =SUM(D49:D52) -> 900.00 | E53: =SUM(E49:E52) -> 900.00 | F53: 912.50 | G53: 990.00 | H53: 980.40 | I53: 990.00 | J53: 990.00 | K53: 990.00 | L53: 960.00 | M53: 960.00 | N53: 960.00 | O53: 960.00 | Q53: =SUM(Q50:Q52) -> 4,292.90
A54: أدخل التفاصيل في جدول "الامتلاك والاستبقاء من قِبل العميل" بدءاً من الخلية الموجودة على اليسار. يتم حساب "إجمالي تكلفة الامتلاك والاستباق من قبل العميل" تلقائياً لكل شهر في نهاية هذا الجدول والإجمالي التكلفة السنوية في الخلية Q59. يتم تحديث خط المؤشر في الخلية S59. توجد الإرشادات التالية في الخلية A60. | B54: عناصر الامتلاك والاستبقاء من قبل العميل (CAR) | C54: السعر | D54: الشهر 1 | E54: الشهر 2 | F54: الشهر 3 | G54: الشهر 4 | H54: الشهر 5 | I54: الشهر 6 | J54: الشهر 7 | K54: الشهر 8 | L54: الشهر 9 | M54: الشهر 10 | N54: الشهر 11 | O54: الشهر 12
B55: الامتلاك والاستبقاء من قِبل العميل
B56: الموارد البشرية | D56: 50 | E56: 50 | F56: 50 | G56: 50 | H56: 50 | I56: 50 | J56: 50 | K56: 50 | L56: 50 | M56: 50 | N56: 50 | O56: 50 | Q56: =SUM('ميزانية تسويق القنوات'!$D56:$O56) -> 600.00
B57: الاتصالات | D57: 250.00 | E57: 250.00 | F57: 250.00 | G57: 250.00 | H57: 250.00 | I57: 250.00 | J57: 250.00 | K57: 250.00 | L57: 250.00 | M57: 250.00 | N57: 250.00 | O57: 250.00 | Q57: =SUM('ميزانية تسويق القنوات'!$D57:$O57) -> 3,000.00
B58: العروض الترويجية/القسائم | D58: 600 | E58: 600 | F58: 600 | G58: 600 | H58: 600 | I58: 600 | J58: 600 | K58: 600 | L58: 600 | M58: 600 | N58: 600 | O58: 600 | Q58: =SUM('ميزانية تسويق القنوات'!$D58:$O58) -> 7,200.00
B59: إجمالي تكلفة الامتلاك والاستبقاء من قبل العميل ر.س. (000) | D59: =SUM(D56:D58) -> 900.00 | E59: =SUM(E56:E58) -> 900.00 | F59: 900.00 | G59: 900.00 | H59: 900.00 | I59: 900.00 | J59: 900.00 | K59: 900.00 | L59: 900.00 | M59: 900.00 | N59: 900.00 | O59: 900.00 | Q59: =SUM(Q56:Q58) -> 10,800.00
A60: أدخل التفاصيل في جدول "المصروفات الأخرى" بدءاً من الخلية الموجودة على اليسار. يتم حساب "إجمالي المصروفات الأخرى" تلقائياً لكل شهر في نهاية هذا الجدول والإجمالي التكلفة السنوية في الخلية Q65. يتم تحديث خط المؤشر في الخلية S65. توجد الإرشادات التالية في الخلية A67. | B60: عناصر المصاريف الأخرى | C60: السعر | D60: الشهر 1 | E60: الشهر 2 | F60: الشهر 3 | G60: الشهر 4 | H60: الشهر 5 | I60: الشهر 6 | J60: الشهر 7 | K60: الشهر 8 | L60: الشهر 9 | M60: الشهر 10 | N60: الشهر 11 | O60: الشهر 12
B61: المصروفات الأخرى
B62: السفر | D62: 50 | E62: 50 | F62: 50 | G62: 50 | H62: 50 | I62: 50 | J62: 50 | K62: 50 | L62: 50 | M62: 50 | N62: 50 | O62: 50 | Q62: =SUM('ميزانية تسويق القنوات'!$D62:$O62) -> 600.00
B63: البنية التحتية (الكمبيوتر، الهاتف، إلخ.) | D63: 250.00 | E63: 250.00 | F63: 250.00 | G63: 250.00 | H63: 250.00 | I63: 250.00 | J63: 250.00 | K63: 250.00 | L63: 250.00 | M63: 250.00 | N63: 250.00 | O63: 250.00 | Q63: =SUM('ميزانية تسويق القنوات'!$D63:$O63) -> 3,000.00
B64: دعم القنوات | D64: 600 | E64: 600 | F64: 600 | G64: 600 | H64: 600 | I64: 600 | J64: 600 | K64: 600 | L64: 600 | M64: 600 | N64: 600 | O64: 600 | Q64: =SUM('ميزانية تسويق القنوات'!$D64:$O64) -> 7,200.00
B65: إجمالي المصروفات الأخرى ر.س. (000) | D65: =SUM(D62:D64) -> 900.00 | E65: =SUM(E62:E64) -> 900.00 | F65: 900.00 | G65: 900.00 | H65: 900.00 | I65: 900.00 | J65: 900.00 | K65: 900.00 | L65: 900.00 | M65: 900.00 | N65: 900.00 | O65: 900.00 | Q65: =SUM(Q62:Q64) -> 10,800.00
A67: يتم حساب "إجمالي ميزانية التسويق" تلقائياً لكل شهر في هذا الصف، من الخلايا D67 إلى O67، والإجمالي التكلفة السنوية في الخلية Q67. يتم تحديث خط المؤشر تلقائياً في الخلية S67. | B67: إجمالي ميزانية التسويق: | D67: =SUM(مصروفات_أخرى[[#Totals],[الشهر 1]],السيارة[[#Totals],[الشهر 1]],بائع_التجزئة[[#Totals],[الشهر 1]],الموزعون[[#Totals],[الشهر 1]],الوكيل_والسمسار[[#Totals],[الشهر 1]],D31) -> 6,354.00 | E67: =SUM(مصروفات_أخرى[[#Totals],[الشهر 2]],السيارة[[#Totals],[الشهر 2]],بائع_التجزئة[[#Totals],[الشهر 2]],الموزعون[[#Totals],[الشهر 2]],الوكيل_والسمسار[[#Totals],[الشهر 2]],E31) -> 5,785.85 | F67: =SUM(مصروفات_أخرى[[#Totals],[الشهر 3]],السيارة[[#Totals],[الشهر 3]],بائع_التجزئة[[#Totals],[الشهر 3]],الموزعون[[#Totals],[الشهر 3]],الوكيل_والسمسار[[#Totals],[الشهر 3]],F31) -> 5,834.44 | G67: =SUM(مصروفات_أخرى[[#Totals],[الشهر 4]],السيارة[[#Totals],[الشهر 4]],بائع_التجزئة[[#Totals],[الشهر 4]],الموزعون[[#Totals],[الشهر 4]],الوكيل_والسمسار[[#Totals],[الشهر 4]],G31) -> 5,902.05 | H67: =SUM(مصروفات_أخرى[[#Totals],[الشهر 5]],السيارة[[#Totals],[الشهر 5]],بائع_التجزئة[[#Totals],[الشهر 5]],الموزعون[[#Totals],[الشهر 5]],الوكيل_والسمسار[[#Totals],[الشهر 5]],H31) -> 5,916.35 | I67: =SUM(مصروفات_أخرى[[#Totals],[الشهر 6]],السيارة[[#Totals],[الشهر 6]],بائع_التجزئة[[#Totals],[الشهر 6]],الموزعون[[#Totals],[الشهر 6]],الوكيل_والسمسار[[#Totals],[الشهر 6]],I31) -> 5,935.69 | J67: =SUM(مصروفات_أخرى[[#Totals],[الشهر 7]],السيارة[[#Totals],[الشهر 7]],بائع_التجزئة[[#Totals],[الشهر 7]],الموزعون[[#Totals],[الشهر 7]],الوكيل_والسمسار[[#Totals],[الشهر 7]],J31) -> 5,976.90 | K67: =SUM(مصروفات_أخرى[[#Totals],[الشهر 8]],السيارة[[#Totals],[الشهر 8]],بائع_التجزئة[[#Totals],[الشهر 8]],الموزعون[[#Totals],[الشهر 8]],الوكيل_والسمسار[[#Totals],[الشهر 8]],K31) -> 6,015.84 | L67: =SUM(مصروفات_أخرى[[#Totals],[الشهر 9]],السيارة[[#Totals],[الشهر 9]],بائع_التجزئة[[#Totals],[الشهر 9]],الموزعون[[#Totals],[الشهر 9]],الوكيل_والسمسار[[#Totals],[الشهر 9]],L31) -> 6,031.80 | M67: =SUM(مصروفات_أخرى[[#Totals],[الشهر 10]],السيارة[[#Totals],[الشهر 10]],بائع_التجزئة[[#Totals],[الشهر 10]],الموزعون[[#Totals],[الشهر 10]],الوكيل_والسمسار[[#Totals],[الشهر 10]],M31) -> 6,001.80 | N67: =SUM(مصروفات_أخرى[[#Totals],[الشهر 11]],السيارة[[#Totals],[الشهر 11]],بائع_التجزئة[[#Totals],[الشهر 11]],الموزعون[[#Totals],[الشهر 11]],الوكيل_والسمسار[[#Totals],[الشهر 11]],N31) -> 6,056.80 | O67: =SUM(مصروفات_أخرى[[#Totals],[الشهر 12]],السيارة[[#Totals],[الشهر 12]],بائع_التجزئة[[#Totals],[الشهر 12]],الموزعون[[#Totals],[الشهر 12]],الوكيل_والسمسار[[#Totals],[الشهر 12]],O31) -> 6,001.80 | Q67: =SUM(D67:O67) -> 71,813.31
